Cogmind - Beta 13 @@@ ROGUE MODE // 2024.04.23 @ 00:34:45 Player: ThatBishHoly Result: Destroyed by G-47 Trooper with Particle Gun Performance ------------- Evolutions (2) 1000 Regions Visited (4) 800 Robots Destroyed (37) 185 Value Destroyed (971) 971 Prototype IDs (0) 0 Alien Tech Used (0) 0 Bonus (200) 200 TOTAL SCORE: 3156 Bonus ------- Entered Garrisons 200 Cogmind --------- Core Integrity 0/550 Matter 300/300 Energy 100/100 System Corruption 0% Temperature Warning (372) Movement Core (50) Location -8/Garrison Parts ------- > --- POWER (1) -------- (None) > --- PROPULSION (4) --- (None) > --- UTILITY (2) ------ Utility Shielding > --- WEAPON (4) ------- (None) > --- INVENTORY (5) ---- (None) Peak State ------------ > --- POWER ------------ Light Nuclear Core > --- PROPULSION ------- Armored Treads Armored Treads Armored Treads Armored Treads > --- UTILITY ---------- Heat Sink Utility Shielding > --- WEAPON ----------- Field Laser Field Laser Ion Cannon Ion Cannon > --- INVENTORY -------- Field Laser Ion Cannon [Rating: 29] Favorites ----------- Power Light Ion Engine Engine Light Ion Engine Power Core Light Nuclear Core Propulsion Armored Treads Treads Armored Treads Leg Aluminum Leg Utility Utility Shielding Device Heat Sink Processor Targeting Computer Protection Utility Shielding Weapon Ion Cannon Energy Gun Field Laser Energy Cannon Ion Cannon Ballistic Gun Assault Rifle Launcher Grenade Launcher Build | -11 -10 -9 -8 -8 ------- Run | Yrd Mat Mat Mat Gar Slots Evolved 4 | . . 2 2 . Power . | . . . . . Propulsion 2 | . . 2 . . Utility . | . . . . . Weapon 2 | . . . 2 . Parts Attached 48 | 5 7 29 4 3 Power 6 | 1 1 2 1 1 Engine 4 | 1 1 2 . . Core 2 | . . . 1 1 Reactor . | . . . . . Propulsion 18 | 2 1 15 . . Treads 8 | . . 8 . . Leg 10 | 2 1 7 . . Wheel . | . . . . . Hover . | . . . . . Flight . | . . . . . Utility 5 | . 3 2 . . Device 2 | . 1 1 . . Storage . | . . . . . Processor 1 | . 1 . . . Hackware . | . . . . . Protection 2 | . 1 1 . . Artifact . | . . . . . Weapon 19 | 2 2 10 3 2 Energy Gun 7 | . . 4 2 1 Energy Cannon 6 | . . 4 1 1 Ballistic Gun 4 | 2 . 2 . . Ballistic Cannon . | . . . . . Launcher 2 | . 2 . . . Special Weapon . | . . . . . Impact Weapon . | . . . . . Slashing Weapon . | . . . . . Piercing Weapon . | . . . . . Special Melee Weapon . | . . . . . Unidentified Prototypes . | . . . . . Parts Lost 25 | . . 12 . 13 Power 5 | . . 3 . 2 Propulsion 8 | . . 4 . 4 Utility 3 | . . 2 . 1 Weapon 9 | . . 3 . 6 Highest Loss Streak 13 | . . 11 . 13 To Critical Strikes 1 | . . . . 1 Average Slot Usage (%) 85 | . 93 82 91 84 Engine 8 | . 14 9 . . Core 1 | . . . 1 7 Treads 16 | . . 17 36 28 Leg 16 | . 28 16 . . Device 6 | . 9 4 9 6 Processor 2 | . 4 3 . . Protection 10 | . 10 10 9 9 Energy Gun 7 | . . 7 18 15 Energy Cannon 5 | . . 4 18 16 Ballistic Gun 6 | . 15 4 . . Launcher 4 | . 11 2 . . Naked Turns . | . . . . . Heaviest Build 25 | 7 12 21 25 25 Greatest Support 80 | 20 20 80 80 80 Greatest Overweight (x) 1 | . . 1 . . Average Overweight (x) . | . . . . . Largest Inventory Capacity 5 | 5 5 5 5 5 Average Capacity 5 | 5 5 5 5 5 Most Carried 5 | 5 5 5 3 2 Average Carried 2 | . 2 2 2 1 Final Capacity 5 | 5 5 5 5 5 Final Carried 4 | . 2 4 2 . Class Distribution -------------------- 72% | Mutant 15% | Tank 11% | Scavenger-Mutant Dominant Class ---------------- Mutant | -10/Materials Mutant | -9/Materials Tank | -8/Materials Tank | -8/Garrison Resources | -11 -10 -9 -8 -8 ----------- Run | Yrd Mat Mat Mat Gar Matter Collected 907 | 203 192 418 33 61 Remotely 192 | . 192 . . . Salvage Created 1168 | . 302 626 143 97 Parts 81 | . 16 48 12 5 Haulers Intercepted . | . . . . . Recyclers Shooed 2 | . 2 . . . Parts Field Recycled . | . . . . . Retrieved Matter . | . . . . . Parts Self-Destructed . | . . . . . Prevented . | . . . . . Kills | -11 -10 -9 -8 -8 ------- Run | Yrd Mat Mat Mat Gar Combat Hostiles Destroyed 28 | . 5 17 4 2 Melee 3 | . . . 3 . Guns 12 | . 1 10 1 . Cannons 6 | . . 4 . 2 AOE 7 | . 4 3 . . Classes Destroyed 7 | . 5 2 . . Worker 3 | . . 3 . . Builder 1 | . 1 . . . Recycler 3 | . 3 . . . Watcher 2 | . 1 1 . . Swarmer 7 | . 3 4 . . Grunt 17 | . 2 10 3 2 Sentry 4 | . . 3 1 . Best Kill Streak 8 | . 8 5 4 2 Combat Bots Only 4 | . 3 3 4 2 Max Kills in Single Turn 2 | . 2 2 1 1 Gunslinging . | . . . . . Exploded 2 | . 1 2 . . Melee 1 | . . . 1 . Uniques/NPCs Destroyed . | . . . . . Combat | -11 -10 -9 -8 -8 -------- Run | Yrd Mat Mat Mat Gar Hostile Shots Fired 412 | . 29 205 53 125 Missed 95 | . 9 62 8 16 Damage Taken 4203 | . 220 1878 552 1553 Core 812 | . 23 225 42 522 Absorbed by Shields . | . . . . . Redirected to Shielding 14 | . . 5 2 7 Regen/Repaired (Parts) 29 | . 29 . . . Core Remaining (%) 77 | 100 90 43 . . Volleys Fired 91 | . 13 65 5 8 Largest 4 | . 2 2 2 4 Hottest 246 | . 50 126 126 246 Shots Fired 163 | . 19 108 10 26 Gun 103 | . 13 67 10 13 Cannon 47 | . . 34 . 13 Launcher 13 | . 6 7 . . Special . | . . . . . Kinetic 44 | . 13 31 . . Thermal 106 | . . 70 10 26 Explosive 13 | . 6 7 . . Electromagnetic . | . . . . . Robot Hit Streak 16 | . 6 16 3 6 Robot Miss Streak 5 | . 5 3 4 5 Penetration Max . | . . . . . Secondary Targets 2 | . . 1 1 . Max Gunslinging Chain 1 | . . 1 1 . Shots Hit Robots 105 | . 10 78 5 12 Core Hits 62 | . 17 33 6 6 Critical Kills 1 | . . 1 . . Critical Parts Destroyed . | . . . . . Critical Strikes 4 | . . 2 1 1 Burn 3 | . . 1 1 1 Meltdown 1 | . . 1 . . Melee Attacks . | . . . . . Impact . | . . . . . Slashing . | . . . . . Piercing . | . . . . . Sneak Attacks . | . . . . . Combat Hostiles . | . . . . . Follow-up Attacks . | . . . . . Damage Inflicted 2354 | . 371 1575 95 313 Guns 1116 | . 86 810 86 134 Cannons 644 | . . 482 . 162 Explosions 568 | . 285 283 . . Melee . | . . . . . Ramming 26 | . . . 9 17 Kinetic 440 | . 86 354 . . Thermal 1320 | . . 938 86 296 Explosive 568 | . 285 283 . . Electromagnetic . | . . . . . Impact . | . . . . . Slashing . | . . . . . Piercing . | . . . . . Highest Corruption 1 | . 1 . . . Average Corruption 1 | . 1 . . . Corruption Purged . | . . . . . Corruption Blocked . | . . . . . Effects 3 | . 3 . . . Matter Fused 2 | . 2 . . . Energy Discharges 1 | . 1 . . . Overload Shots . | . . . . . Overflow Damage 6 | . . 6 . . Projectiles 6 | . . 6 . . Explosions . | . . . . . Melee . | . . . . . Knockbacks . | . . . . . Impact . | . . . . . Kinetic . | . . . . . Secondary . | . . . . . Self-Inflicted Damage 169 | . 63 102 . 4 Shots 6 | . 2 4 . . Rammed 15 | . . . 5 10 Targets Rammed 17 | . . . 7 10 Kicked . | . . . . . Crushed 2 | . . . 2 . Highest Temperature 733 | . 5 414 113 733 Average Temperature 195 | . 4 123 63 467 Received Heat Transfer 1311 | . 12 525 189 585 Effects 20 | . . 3 . 17 Shutdowns 4 | . . 1 . 3 Energy Bleed 6 | . . 2 . 4 Interference 3 | . . . . 3 Matter Decay 1 | . . . . 1 Damage (minor) 1 | . . . . 1 Damage (major) 2 | . . . . 2 Damage (core) 3 | . . . . 3 Siege Activations . | . . . . . Robots Corrupted . | . . . . . Combat Hostiles . | . . . . . Parts Fried . | . . . . . Impact Corruptions . | . . . . . Robots Melted 1 | . . 1 . . Combat Hostiles . | . . . . . Parts Melted 6 | . . 4 . 2 Heat Transferred 2812 | . . 1924 259 629 Parts Sabotaged . | . . . . . Parts Stolen . | . . . . . Parts Stripped . | . . . . . Power Chain Reactions . | . . . . . Alert | -11 -10 -9 -8 -8 ------- Run | Yrd Mat Mat Mat Gar Peak Influence 280 | . 219 280 238 207 Initial 157 | . . 31 108 157 Average 140 | . 69 172 165 155 Maximum Alert Level 1 | . 1 1 1 1 Low Security (%) 73 | 100 90 61 69 92 Level 1 26 | . 9 38 30 7 Level 2 . | . . . . . Level 3 . | . . . . . Level 4 . | . . . . . Level 5 . | . . . . . High Security . | . . . . . Max Security . | . . . . . Squads Dispatched 5 | . 1 2 2 . Investigation 2 | . 1 1 . . Extermination . | . . . . . Reinforcement 2 | . . 1 1 . Assault . | . . . . . Garrison 1 | . . . 1 . Intercept . | . . . . . Searches Triggered . | . . . . . Construction Impeded . | . . . . . Haulers Reinforced . | . . . . . Active Scanning Responses . | . . . . . Cargo Convoy Interrupts . | . . . . . Stealth | -11 -10 -9 -8 -8 --------- Run | Yrd Mat Mat Mat Gar Distress Signals 3 | . 1 2 . . Communications Jammed . | . . . . . Distress Signals . | . . . . . Times Spotted 45 | . 7 23 7 8 Peak Tracking Total 6 | . 4 6 5 6 Tactical Retreats 1 | . . 1 . . Traps | -11 -10 -9 -8 -8 ------- Run | Yrd Mat Mat Mat Gar Traps Triggered 1 | . . 1 . . Indirectly . | . . . . . Trap Hack Attempts . | . . . . . Triggered . | . . . . . Disarmed . | . . . . . Reprogrammed . | . . . . . Reused . | . . . . . Traps Extracted . | . . . . . Installed . | . . . . . Triggered . | . . . . . Machines | -11 -10 -9 -8 -8 ---------- Run | Yrd Mat Mat Mat Gar Machines Disabled 2 | . 1 . 1 . Max in Single Turn 1 | . 1 . 1 . Machines Repaired . | . . . . . Machines Dismantled . | . . . . . Machines Sabotaged . | . . . . . Overloaded Fab Kills . | . . . . . Hacking | -11 -10 -9 -8 -8 --------- Run | Yrd Mat Mat Mat Gar Machines Accessed 6 | . 4 1 1 . Terminals 3 | . 3 . . . Fabricators . | . . . . . Repair Stations 1 | . 1 . . . Recycling Units 1 | . . 1 . . Scanalyzers . | . . . . . Garrison Access 1 | . . . 1 . Total Hacks 18 | . 11 6 1 . Successful 14 | . 7 6 1 . Failed 4 | . 4 . . . Catastrophic . | . . . . . Database Lockouts . | . . . . . Manual . | . . . . . Terminals 8 | . 8 . . . Fabricators . | . . . . . Repair Stations 3 | . 3 . . . Recycling Units 6 | . . 6 . . Scanalyzers . | . . . . . Garrison Access 1 | . . . 1 . Terminal Hacks 4 | . 4 . . . Robot Analysis 1 | . 1 . . . Alert Level 1 | . 1 . . . Unreport Threat 1 | . 1 . . . Locate Traps 1 | . 1 . . . Fabricator Hacks . | . . . . . Repair Station Hacks 3 | . 3 . . . Scan Component 2 | . 2 . . . Repair 1 | . 1 . . . Recycling Unit Hacks 6 | . . 6 . . Recycle Component 3 | . . 3 . . Process 1 | . . 1 . . Report Inventory 1 | . . 1 . . Retrieve Matter 1 | . . 1 . . Scanalyzer . | . . . . . Garrison Access Hacks 1 | . . . 1 . Unlock Access 1 | . . . 1 . Unauthorized Hacks . | . . . . . Terminals . | . . . . . Fabricators . | . . . . . Repair Stations . | . . . . . Recycling Units . | . . . . . Scanalyzers . | . . . . . Garrison Access . | . . . . . Data Cores Recovered . | . . . . . Used . | . . . . . Hacking Detections 5 | . 3 1 1 . Full Trace Events 2 | . 2 . . . Feedback Events 1 | . 1 . . . Corruption 1 | . 1 . . . Feedback Blocked . | . . . . . Robot Schematics Acquired . | . . . . . Robots Built . | . . . . . Authchips . | . . . . . Time . | . . . . . Total Robot Build Rating . | . . . . . Part Schematics Acquired . | . . . . . Parts Built . | . . . . . Authchips . | . . . . . Time . | . . . . . Total Part Build Rating . | . . . . . Parts Repaired 1 | . 1 . . . Time 26 | . 26 . . . Parts Recycled 3 | . . 3 . . Recycled Matter 8 | . . 8 . . Retrieved Matter 8 | . . 8 . . Retrieved Components . | . . . . . Parts Scanalyzed . | . . . . . Part Schematics Acquired . | . . . . . Parts Damaged . | . . . . . Bothacking | -11 -10 -9 -8 -8 ------------ Run | Yrd Mat Mat Mat Gar Used RIF Installer . | . . . . . Robots Hacked . | . . . . . Non-combat . | . . . . . Combat . | . . . . . Robot Hacks Applied . | . . . . . Relay Couplers Released . | . . . . . Fabnet Peak Effective % . | . . . . . Robots Rewired . | . . . . . Allies Hacked . | . . . . . Hacks Repelled . | . . . . . Allies | -11 -10 -9 -8 -8 -------- Run | Yrd Mat Mat Mat Gar Total Allies . | . . . . . Largest Group . | . . . . . Highest-Rated Group . | . . . . . Highest-Rated Ally . | . . . . . Total Orders . | . . . . . Ally Attacks . | . . . . . Total Damage . | . . . . . Kills . | . . . . . Allies Corrupted . | . . . . . Allies Melted . | . . . . . Intel | -11 -10 -9 -8 -8 ------- Run | Yrd Mat Mat Mat Gar Robot Analysis Total 1 | . 1 . . . Derelict Logs Recovered . | . . . . . Drone Launches . | . . . . . Drone Recoveries . | . . . . . Exploration | -11 -10 -9 -8 -8 ------------- Run | Yrd Mat Mat Mat Gar Turns Passed 1220 | 42 283 677 69 149 Spaces Moved 589 | 38 159 319 21 52 Core 36 | 19 . 17 . . Treads 190 | . . 117 21 52 Legs 363 | 19 159 185 . . Wheels . | . . . . . Hover . | . . . . . Flight . | . . . . . Fastest Speed 50 | 50 120 100 170 170 Average Speed 132 | 85 120 136 170 170 Slowest Speed 170 | 120 120 170 170 170 Overloaded Moves . | . . . . . Propulsion Burnouts . | . . . . . Robots Hopped . | . . . . . Cave-ins Triggered . | . . . . . Exploration Rate (%) 15 | 3 31 23 6 14 Regions Visited 4 Branch Regions . Pre-discovered Areas . | . . . . . Known Exits Taken 1 | . . . 1 . Unknown Exits Taken 3 | 1 1 1 . . Scrap Searched . | . . . . . Spaces Dug . | . . . . . Terrain Destroyed 75 | . 37 38 . . Melee . | . . . . . Projectile 1 | . . 1 . . AOE 74 | . 37 37 . . Terrain Rammed . | . . . . . Walls Destroyed . | . . . . . Machines Disabled . | . . . . . Actions | -11 -10 -9 -8 -8 --------- Run | Yrd Mat Mat Mat Gar Total 858 | 47 232 455 38 86 Wait 54 | . 42 . . 12 Move 586 | 37 158 318 21 52 Hop . | . . . . . Pick Up 45 | 5 8 30 1 1 Fast Attach 1 | . . 1 . . Attach 36 | 5 4 21 3 3 Detach 2 | . 1 1 . . Swap 11 | . 3 7 1 . Drop 15 | . 3 12 . . Fire 91 | . 13 65 5 8 Melee . | . . . . . Ram 7 | . . . . 7 Kick . | . . . . . Crush 10 | . . . 7 3 Escape Stasis . | . . . . . Rewire . | . . . . . Trap . | . . . . . Miscellaneous . | . . . . . Route ------- -11/Scrapyard -10/Materials -9/Materials -8/Materials -8/Garrison History --------- Turn | Location | Event 10 | -11/Scrapyard | Discovered new exit (range 15) 43 | -11/Scrapyard | Entered Materials 259 | -10/Materials | Discovered new exit (range 8) 308 | -10/Materials | Build established: Mutant 309 | -10/Materials | Repaired Grenade Launcher 326 | -10/Materials | Entered another Materials area 326 | -9/Materials | Evolved 2 slots: Propulsion x2 591 | -9/Materials | Lost 11 parts (2p4n2u3w) 865 | -9/Materials | Core integrity fell below 50% 969 | -9/Materials | Discovered new exit (range 16) 1003 | -9/Materials | Entered another Materials area 1003 | -8/Materials | Evolved 2 slots: Weapon x2 1044 | -8/Materials | Garrison activated, responded to threat 1072 | -8/Materials | Identified exit to Garrison 1072 | -8/Materials | Entered Garrison 1140 | -8/Garrison | Triggered checkpoint 1163 | -8/Garrison | Triggered checkpoint 1207 | -8/Garrison | Core integrity fell below 50% 1216 | -8/Garrison | Core integrity fell below 20% 1221 | -8/Garrison | Destroyed by G-47 Trooper with Particle Gun Last Messages --------------- 01198_ Slammed into S-10 Pest. 01199_ Acquired 10 matter. 01200_ Overheating: Core damaged (-60). 01201_ Slammed into S-10 Pest. 01201_ Arm. Treads destroyed. 01203_ Overheating: Energy bleed (-11). 01203_ Slammed into S-10 Pest. 01205_ Overheating: Field Laser damaged (-3). 01206_ Acquired Lgt. Nuclear Core. 01207_ Overheating: Core damaged (-71). 01208_ Power failure, Lgt. Nuclear Core shutdown. 01208_ Slammed into S-10 Pest. 01209_ Field Laser destroyed. 01211_ Slammed into S-10 Pest. 01211_ Destabilizing: Core damaged (-22). 01213_ Overheating: Energy bleed (-11). 01215_ Lgt. Nuclear Core destroyed. 01215_ Ion Cannon destroyed. 01217_ Slammed into G-47 Trooper. Map ----- +----------------------------------------------------+ | ????????????# #????????????????????????????????? | | ????????????# #????????????????????????????????? | | ????????????# #????????????????????????????????? | | ????????????# #????????????????????????????????? | | ????????????# #????????????????????????????????? | | ????????????# #????????????????????????????????? | | ????????????# #????????????????????????????????? | | ????????????# #????????????????????????????????? | | ????????????# #????????????????????????????????? | | ????????????# #????????????????????????????????? | | ????????????# #????????????????????????????????? | | ????????????# #????????????????????????????????? | | ????????????# #????????????????????????????????? | | ????????????# #????????????????????????????????? | | ????????????# #????????????????????????????????? | | ??########### #???????####?????????????????????? | | #??????? #?????????????????????? | | #??????? #?????????????????????? | | ?# ######### #???????# #?????????????????????? | | ????????????# #???????# #?????????????????????? | | ????????????# #???????# #?????????????????????? | | ????????????# #???????# #?????????????????????? | | ????????????# #???????# #????##???????????????? | | ????????????# ^ #???????# #?? #???????????????? | | ????????????# #########gg## ## ##??????????? | | ????????????# =g[@ #??????????? | | ????????????# % [s= ????????? | | ????????????# %=s%= ????????? | | ????????????############ ## ## ##?????????? | | ???????????????????????# #?? #???????????????? | | ??????????????????????? ?? ??????????????? | | ??????????????????????? ? ????????????? | | ?????????????????????? ? ???????????? | | ?????????????????????? ? ???????????? | | ??????????????????????## ## ##? ???????????? | | ???????????????????????# #? #???????????????? | | ??????????????????????? ?? ??????????????? | | ??????????????????????? ?? ??????????????? | | ???????????????????????# ?? ?????????????? | | ????????????????????????# ##???"#???????????????? | | ????????????????????????? #?????????????????????? | | ????????????????????????? #?????????????????????? | | ????????????????????????? ??????????????????????? | | ?????????????????????????????????????????????????? | | ?????????????????????????????????????????????????? | | ?????????????????????????????????????????????????? | | ?????????????????????????????????????????????????? | | ?????????????????????????????????????????????????? | | ?????????????????????????????????????????????????? | | ?????????????????????????????????????????????????? | +----------------------------------------------------+ Best States ------------- Heat Dissipation 41 Energy Generation 14 Energy Capacity 265 Matter Stores 300 Matter Capacity 300 Sight Range 16 Terrain Scan Density 10 Armor Coverage 150 Utility Shielding 33 Evasion (%) 55 Targeting Accuracy 5 Recoil Reduction 4 Item Schematics ----------------- None Robot Schematics ------------------ None Fabricated ------------ Nothing Alien Tech Used ----------------- None Achievements -------------- None Challenges ------------ None Game ------ Seed FireSpacefoldBarrier Manual? 0 Play Time 00:18:35 Cumulative 16.2 hours Start 2024.04.23 @ 00:17:38 End 2024.04.23 @ 00:34:45 Sessions 1 Manual Loads 0 Difficulty Rogue Special Mode None Game No. 46 Rogue 46 Adventurer 0 Explorer 0 Win Type - Total 0 Types 0/0/0/0/0/0/0/0/0 Lore% 13 Gallery% 28 Achievement% 21 Wizard Run 0 Options --------- Layout 1 ASCII 0 Keyboard 0 Movement Mouse Keybinds 0 Fullscreen 1 Font 16/SmallcapsGlow Map View 25x20 Zoom Use 92% Tactical HUD 1 Map Filters NONE Filters NONE Steam SD RUN: a0f2e4ae-8668-48ec-a8f6-a0ba45726069